Cogmind - Beta 13 X2 @@@ ROGUE MODE // 2024.01.25 @ 08:30:29 // AFD2020/Player2 Player: Minty Result: Core destroyed Performance ------------- Evolutions (0) 0 Regions Visited (1) 200 Robots Destroyed (2) 10 Value Destroyed (91) 91 Prototype IDs (0) 0 Alien Tech Used (0) 0 Bonus (110) 110 TOTAL SCORE: 411 Bonus ------- Follower Combat Kills 110 Cogmind --------- Core Integrity 0/250 Matter 297/300 Energy 83/100 System Corruption 0% Temperature Hot (247) Movement Walking (190) Ox1 Location -10/Materials Parts ------- > --- POWER (1) -------- (None) > --- PROPULSION (2) --- Aluminum Leg > --- UTILITY (2) ------ Large Storage Unit Targeting Computer > --- WEAPON (2) ------- (None) > --- INVENTORY (15) --- Light Ion Engine Small Storage Unit Large Storage Unit ECM Suite Hacking Suite Peak State ------------ > --- POWER ------------ Ion Engine > --- PROPULSION ------- Aluminum Leg Aluminum Leg > --- UTILITY ---------- Small Storage Unit Targeting Computer > --- WEAPON ----------- EM Pulse Gun Medium Laser > --- INVENTORY -------- (None) [Rating: 7] Favorites ----------- Power Ion Engine Engine Ion Engine Propulsion Aluminum Leg Leg Aluminum Leg Utility Targeting Computer Storage Large Storage Unit Processor Targeting Computer Weapon Medium Laser Energy Gun Medium Laser Build | -11 -10 ------- Run | Yrd Mat Slots Evolved . | . . Power . | . . Propulsion . | . . Utility . | . . Weapon . | . . Parts Attached 2 | . 2 Power . | . . Engine . | . . Core . | . . Reactor . | . . Propulsion . | . . Treads . | . . Leg . | . . Wheel . | . . Hover . | . . Flight . | . . Utility 2 | . 2 Device . | . . Storage 1 | . 1 Processor 1 | . 1 Hackware . | . . Protection . | . . Artifact . | . . Weapon . | . . Energy Gun . | . . Energy Cannon . | . . Ballistic Gun . | . . Ballistic Cannon . | . . Launcher . | . . Special Weapon . | . . Impact Weapon . | . . Slashing Weapon . | . . Piercing Weapon . | . . Special Melee Weapon . | . . Unidentified Prototypes . | . . Parts Lost 4 | . 4 Power 1 | . 1 Propulsion 1 | . 1 Utility . | . . Weapon 2 | . 2 Highest Loss Streak 4 | . 4 To Critical Strikes . | . . Average Slot Usage (%) 97 | . 97 Engine 14 | . 14 Leg 27 | . 27 Storage 14 | . 14 Processor 13 | . 13 Energy Gun 27 | . 27 Naked Turns . | . . Heaviest Build 29 | 14 29 Greatest Support 20 | 20 20 Greatest Overweight (x) 2 | . 2 Average Overweight (x) . | . . Largest Inventory Capacity 15 | . 15 Average Capacity 12 | . 12 Most Carried 6 | . 6 Average Carried 3 | . 3 Final Capacity 15 | 8 15 Final Carried 6 | 6 5 Class Distribution -------------------- 100% | Mutant Dominant Class ---------------- Mutant | -10/Materials Resources | -11 -10 ----------- Run | Yrd Mat Matter Collected 197 | 187 10 Remotely . | . . Salvage Created 110 | . 110 Parts 4 | . 4 Haulers Intercepted . | . . Recyclers Shooed . | . . Parts Field Recycled . | . . Retrieved Matter . | . . Parts Self-Destructed . | . . Prevented . | . . Kills | -11 -10 ------- Run | Yrd Mat Combat Hostiles Destroyed 2 | . 2 Guns 2 | . 2 Classes Destroyed 1 | . 1 Grunt 2 | . 2 Best Kill Streak 2 | . 2 Combat Bots Only 2 | . 2 Max Kills in Single Turn 1 | . 1 Gunslinging . | . . Exploded . | . . Melee . | . . Uniques/NPCs Destroyed . | . . Combat | -11 -10 -------- Run | Yrd Mat Hostile Shots Fired 56 | . 56 Missed 7 | . 7 Damage Taken 541 | . 541 Core 142 | . 142 Absorbed by Shields . | . . Core Remaining (%) 100 | 100 . Volleys Fired 18 | . 18 Largest 2 | . 2 Hottest 90 | . 90 Shots Fired 33 | . 33 Gun 33 | . 33 Cannon . | . . Launcher . | . . Special . | . . Kinetic . | . . Thermal 18 | . 18 Explosive . | . . Electromagnetic 15 | . 15 Robot Hit Streak 8 | . 8 Robot Miss Streak 3 | . 3 Penetration Max . | . . Secondary Targets 1 | . 1 Max Gunslinging Chain 1 | . 1 Shots Hit Robots 22 | . 22 Core Hits 7 | . 7 Critical Kills . | . . Critical Parts Destroyed . | . . Critical Strikes 1 | . 1 Burn 1 | . 1 Melee Attacks . | . . Impact . | . . Slashing . | . . Piercing . | . . Sneak Attacks . | . . Combat Hostiles . | . . Follow-up Attacks . | . . Damage Inflicted 292 | . 292 Guns 292 | . 292 Cannons . | . . Explosions . | . . Melee . | . . Ramming . | . . Kinetic . | . . Thermal 137 | . 137 Explosive . | . . Electromagnetic 155 | . 155 Impact . | . . Slashing . | . . Piercing . | . . Highest Corruption . | . . Average Corruption . | . . Corruption Purged . | . . Corruption Blocked . | . . Overload Shots . | . . Overflow Damage . | . . Projectiles . | . . Explosions . | . . Melee . | . . Knockbacks . | . . Impact . | . . Kinetic . | . . Secondary . | . . Self-Inflicted Damage . | . . Shots . | . . Rammed . | . . Targets Rammed . | . . Kicked . | . . Crushed . | . . Highest Temperature 368 | . 368 Average Temperature 213 | . 213 Received Heat Transfer 297 | . 297 Effects 6 | . 6 Energy Bleed 2 | . 2 Interference 4 | . 4 Siege Activations . | . . Robots Corrupted . | . . Combat Hostiles . | . . Parts Fried . | . . Impact Corruptions . | . . Robots Melted . | . . Combat Hostiles . | . . Parts Melted . | . . Heat Transferred 481 | . 481 Parts Sabotaged . | . . Parts Stolen . | . . Parts Stripped . | . . Power Chain Reactions . | . . Missiles Intercepted . | . . Alert | -11 -10 ------- Run | Yrd Mat Peak Influence 201 | . 201 Initial . | . . Average 51 | . 51 Maximum Alert Level 1 | . 1 Low Security (%) 96 | . 96 Level 1 3 | . 3 Level 2 . | . . Level 3 . | . . Level 4 . | . . Level 5 . | . . High Security . | . . Max Security . | . . Squads Dispatched 2 | . 2 Investigation . | . . Extermination . | . . Reinforcement 2 | . 2 Assault . | . . Garrison . | . . Intercept . | . . Searches Triggered . | . . Construction Impeded . | . . Haulers Reinforced . | . . Active Scanning Responses . | . . Cargo Convoy Interrupts . | . . Stealth | -11 -10 --------- Run | Yrd Mat Distress Signals 2 | . 2 Communications Jammed . | . . Distress Signals . | . . Times Spotted 13 | . 13 Peak Tracking Total 8 | . 8 Tactical Retreats . | . . Traps | -11 -10 ------- Run | Yrd Mat Traps Triggered . | . . Indirectly . | . . Trap Hack Attempts . | . . Triggered . | . . Disarmed . | . . Reprogrammed . | . . Reused . | . . Traps Extracted . | . . Installed . | . . Triggered . | . . Machines | -11 -10 ---------- Run | Yrd Mat Machines Disabled 1 | . 1 Max in Single Turn 1 | . 1 Machines Repaired . | . . Machines Dismantled . | . . Machines Sabotaged . | . . Overloaded Fab Kills . | . . Hacking | -11 -10 --------- Run | Yrd Mat Machines Accessed 1 | . 1 Terminals 1 | . 1 Fabricators . | . . Repair Stations . | . . Recycling Units . | . . Scanalyzers . | . . Garrison Access . | . . Total Hacks 4 | . 4 Successful 3 | . 3 Failed 1 | . 1 Catastrophic . | . . Database Lockouts . | . . Manual 2 | . 2 Terminals 4 | . 4 Fabricators . | . . Repair Stations . | . . Recycling Units . | . . Scanalyzers . | . . Garrison Access . | . . Terminal Hacks 2 | . 2 Transport Status 1 | . 1 Hauler Manifests 1 | . 1 Fabricator Hacks . | . . Repair Station Hacks . | . . Recycling Unit Hacks . | . . Scanalyzer . | . . Garrison Access Hacks . | . . Unauthorized Hacks 1 | . 1 Terminals 1 | . 1 Botnet 1 | . 1 Fabricators . | . . Repair Stations . | . . Recycling Units . | . . Scanalyzers . | . . Garrison Access . | . . Data Cores Recovered . | . . Used . | . . Hacking Detections 1 | . 1 Full Trace Events . | . . Feedback Events . | . . Feedback Blocked . | . . Robot Schematics Acquired . | . . Robots Built . | . . Authchips . | . . Time . | . . Total Robot Build Rating . | . . Part Schematics Acquired . | . . Parts Built . | . . Authchips . | . . Time . | . . Total Part Build Rating . | . . Parts Repaired . | . . Time . | . . Parts Recycled . | . . Recycled Matter . | . . Retrieved Matter . | . . Retrieved Components . | . . Parts Scanalyzed . | . . Part Schematics Acquired . | . . Parts Damaged . | . . Bothacking | -11 -10 ------------ Run | Yrd Mat Used RIF Installer . | . . Robots Hacked . | . . Non-combat . | . . Combat . | . . Robot Hacks Applied . | . . Relay Couplers Released . | . . Fabnet Peak Effective % . | . . Robots Rewired . | . . Allies Hacked . | . . Hacks Repelled . | . . Allies | -11 -10 -------- Run | Yrd Mat Total Allies 1 | . 1 Largest Group 1 | . 1 Highest-Rated Group 55 | . 55 Highest-Rated Ally 55 | . 55 Total Orders . | . . Ally Attacks 38 | . 38 Total Damage 218 | . 218 Kills 4 | . 4 Allies Corrupted . | . . Allies Melted . | . . Intel | -11 -10 ------- Run | Yrd Mat Robot Analysis Total . | . . Derelict Logs Recovered . | . . Drone Launches . | . . Drone Recoveries . | . . Exploration | -11 -10 ------------- Run | Yrd Mat Turns Passed 185 | . 185 Spaces Moved 77 | 1 76 Core . | . . Treads . | . . Legs 77 | 1 76 Wheels . | . . Hover . | . . Flight . | . . Fastest Speed 120 | 120 120 Average Speed 158 | 120 158 Slowest Speed 260 | 120 260 Overloaded Moves . | . . Propulsion Burnouts . | . . Robots Hopped . | . . Cave-ins Triggered . | . . Exploration Rate (%) 10 | 2 19 Regions Visited 1 Branch Regions . Pre-discovered Areas . | . . Known Exits Taken . | . . Unknown Exits Taken 1 | 1 . Scrap Searched . | . . Spaces Dug . | . . Terrain Destroyed . | . . Melee . | . . Projectile . | . . AOE . | . . Terrain Rammed . | . . Walls Destroyed . | . . Machines Disabled . | . . Actions | -11 -10 --------- Run | Yrd Mat Total 111 | . 111 Wait 4 | . 4 Move 76 | . 76 Hop . | . . Pick Up 4 | . 4 Fast Attach 2 | . 2 Attach . | . . Detach 1 | . 1 Swap . | . . Drop 6 | . 6 Fire 18 | . 18 Melee . | . . Ram . | . . Kick . | . . Crush . | . . Escape Stasis . | . . Rewire . | . . Trap . | . . Miscellaneous . | . . Route ------- -11/Scrapyard -10/Materials History --------- Turn | Location | Event 1 | -11/Scrapyard | Discovered new exit (range 0) 1 | -11/Scrapyard | Entered Materials 174 | -10/Materials | Core integrity fell below 50% 183 | -10/Materials | Core integrity fell below 20% 186 | -10/Materials | Core destroyed Last Messages --------------- 00167_ EM Pulse Gun temporarily disabled. 00169_ K-01 Serf collects debris. 00171_ G-34 Mercenary misfires. 00172_ G-34 Mercenary destroyed. 00172_ EM Pulse Gun destroyed. 00173_ W-16 Scout sends out distress signal. 00173_ K-01 Serf collects debris. 00176_ K-01 Serf cleans the Electrolysis Chamber. 00178_ Aluminum Leg destroyed. 00179_ Player 2 attaches Lgt. Ion Engine. 00179_ K-01 Serf cleans the Electrolysis Chamber. 00181_ G-34 Mercenary misfires. 00181_ Med. Laser destroyed. 00182_ Overheating: Energy bleed (-50). 00182_ Ion Engine destroyed. 00183_ K-01 Serf collects debris. 00184_ Overheating: Energy bleed (-23). 00184_ U-05 Engineer destroyed. 00186_ R-06 Scavenger collects Lgt. Nuclear Core. 00186_ R-06 Scavenger collects Imp. Heat Sink. Map ----- +----------------------------------------------------+ | ??????????# # ***#???????????????????? | | ??????????# """ # ! #???????????????????? | | ??????????#! """ # ** #???????????????????? | | ??????????# """ # ! #???????????????????? | | ??????????# # #???????????????????? | | ??????????######## #???????????????????? | | ?????????????????######## ####???????????????????? | | ????????????????????????# #??????????????????????? | | ????????????????????????# #??????????????????????? | | ????????????????????????# #??????????????????????? | | ????????????????????????# #??????????????????????? | | ????????????????????????# #??????????????????????? | | ???????????????###??????# #??????????????????????? | | ????????????????/ ?????# #??????????????????????? | | ????????????????# ????# #??????????????????????? | | ????????????? ??? ????# #????##????????????????? | | ????????????# ??? ???# #####T##########???????? | | ???????????## a####/#### #???????? | | ?????????? ^ gg*% ??????? | | ?????????? g g%%* = / ^ ??????? | | ?????????? %== @ % ""?????????? | | ???????????####### ""?????????? | | ??????????# # ""?????????? | | ??????????# w ????????? | | ????????????? # u ######### ????????? | | ?????????????[ + r@ #????????? ????????? | | ?????????????[ ###### %g#???????????? ????????? | | ?????????????[ ??????# r #?????????????????????? | | ??????????????????????# ?????????????????????? | | ??????????????????????# ????????????????????? | | ??????????????????????# ???????????????????? | | ??????????????????????###+## ???????????????????? | | ???????????????????????? ??###??????????????????? | | ???????????????????????? ???????????????????????? | | ???????????????????????? ???????????????????????? | | ???????????????????????? ???????????????????????? | | ????????????????????????? ???????????????????????? | | ????????????????????????? ???????????????????????? | | ????????????????????????? ???????????????????????? | | ?????????????????????????????????????????????????? | | ?????????????????????????????????????????????????? | | ?????????????????????????????????????????????????? | | ?????????????????????????????????????????????????? | | ?????????????????????????????????????????????????? | | ?????????????????????????????????????????????????? | | ?????????????????????????????????????????????????? | | ?????????????????????????????????????????????????? | | ?????????????????????????????????????????????????? | | ?????????????????????????????????????????????????? | | ?????????????????????????????????????????????????? | +----------------------------------------------------+ Best States ------------- Heat Dissipation 25 Energy Generation 10 Energy Capacity 250 Matter Stores 287 Matter Capacity 300 Sight Range 16 Terrain Scan Density 10 Evasion (%) 55 Targeting Accuracy 5 Item Schematics ----------------- None Robot Schematics ------------------ None Fabricated ------------ Nothing Alien Tech Used ----------------- None Achievements -------------- None Challenges ------------ None Player 2 | -11 -10 ---------- Run | Yrd Mat Slots Evolved . | . . Power . | . . Propulsion . | . . Utility . | . . Weapon . | . . Parts Attached 7 | . 7 Parts Lost 1 | . 1 Damage Taken 377 | . 377 Core 116 | . 116 Player 2/Cogmind (%) 44 | . 44 Absorbed by Shields . | . . Damage Inflicted 218 | . 218 Player 2/Cogmind (%) 42 | . 42 Combat Hostiles Destroyed 4 | . 4 Player 2/Cogmind (%) 66 | . 66 Game ------ Seed AntimatterCryofiberChip Manual? 0 Play Time 00:03:02 Cumulative 619.2 hours Start 2024.01.25 @ 08:28:44 End 2024.01.25 @ 08:30:29 Sessions 1 Manual Loads 0 Difficulty Rogue Special Mode AFD2020/Player2 Game No. 573 Rogue 300 Adventurer 123 Explorer 150 Win Type - Total 25 Types 19/0/4/1/0/0/0/1/0 Lore% 80 Gallery% 90 Achievement% 76 Wizard Run 0 Options --------- ASCII 0 Keyboard 1 Movement Numpad Keybinds 0 Fullscreen 2 Font 18/X11Bold Map View 76x50 Zoom Use 14% Tactical HUD 1 Map Filters NONE Filters NONE Steam 1 RUN: 38040c05-d2a8-4252-826d-0186e53875ff